Cogmind - Beta 11.1 @@@ ROGUE MODE // 2022.05.02 @ 02:03:07 Player: Olga Result: Destroyed by P-80 Master with Gamma Rifle Performance ------------- Evolutions (7) 3500 Regions Visited (10) 2000 Robots Destroyed (2) 10 Value Destroyed (33) 33 Prototype IDs (2) 40 Alien Tech Used (0) 0 Bonus (2325) 2325 TOTAL SCORE: 7908 Bonus ------- Pacifist 1325 Entered DSFs 1000 Cogmind --------- Core Integrity 0/1300 Matter 99/300 Energy 100/100 System Corruption 8% Temperature Cool (1) Movement Flying (45) Location -3/Research Parts ------- > --- POWER (1) -------- (None) > --- PROPULSION (4) --- Impulse Thruster Array > --- UTILITY (14) ----- Machine Analyzer > --- WEAPON (2) ------- (None) > --- INVENTORY (5) ---- Particle Reactor Advanced Sensor Array Improved Heavy Armor Plating Heavy Pick Peak State ------------ > --- POWER ------------ Micro Fission Core > --- PROPULSION ------- Nuclear Pulse Thruster Nuclear Pulse Thruster Nuclear Pulse Thruster Field Propulsion Drive > --- UTILITY ---------- Advanced Weight Redist. System Structural Scanner Improved Sensor Array Stasis Canceller Improved Utility Shielding Improved Utility Shielding Medium Armor Plating Improved Medium Armor Plating > --- WEAPON ----------- Great Axe Heavy Pick > --- INVENTORY -------- Ion Engine Nuclear Core Scythe [Rating: 60] Favorites ----------- Power Micro Fission Core Engine Ion Engine Power Core Micro Fission Core Reactor Particle Reactor Propulsion Nuclear Pulse Thruster Flight Unit Nuclear Pulse Thruster Utility Improved Utility Shielding Device Advanced Weight Redist. System Processor Machine Analyzer Hackware Hacking Suite Protection Improved Utility Shielding Weapon Heavy Pick Energy Gun EM Pulse Gun Slashing Weapon Scythe Piercing Weapon Heavy Pick Build | -11 -10 -9 -8 -7 -7 -6 -5 -4 -4 -3 ------- Run | Scr Mat Mat Mat Fac DSF Fac Fac Fac DSF Res Slots Evolved 14 | . . 2 2 2 . 2 2 2 . 2 Power . | . . . . . . . . . . . Propulsion 2 | . . . . . . 2 . . . . Utility 12 | . . 2 2 2 . . 2 2 . 2 Weapon . | . . . . . . . . . . . Parts Attached 38 | 1 . . . 2 . 10 10 1 1 13 Power 4 | . . . . . . 2 1 . . 1 Engine 1 | . . . . . . 1 . . . . Core 2 | . . . . . . 1 1 . . . Reactor 1 | . . . . . . . . . . 1 Propulsion 9 | . . . . . . 3 1 1 1 3 Treads . | . . . . . . . . . . . Leg . | . . . . . . . . . . . Wheel . | . . . . . . . . . . . Hover . | . . . . . . . . . . . Flight 9 | . . . . . . 3 1 1 1 3 Utility 19 | . . . . 1 . 4 6 . . 8 Device 12 | . . . . 1 . 3 3 . . 5 Storage . | . . . . . . . . . . . Processor 1 | . . . . . . . . . . 1 Hackware 1 | . . . . . . . . . . 1 Protection 5 | . . . . . . 1 3 . . 1 Artifact . | . . . . . . . . . . . Weapon 6 | 1 . . . 1 . 1 2 . . 1 Energy Gun 1 | 1 . . . . . . . . . . Energy Cannon . | . . . . . . . . . . . Ballistic Gun . | . . . . . . . . . . . Ballistic Cannon . | . . . . . . . . . . . Launcher . | . . . . . . . . . . . Special Weapon . | . . . . . . . . . . . Impact Weapon . | . . . . . . . . . . . Slashing Weapon 3 | . . . . 1 . . 2 . . . Piercing Weapon 2 | . . . . . . 1 . . . 1 Special Melee Weapon . | . . . . . . . . . . . Unidentified Prototypes 2 | . . . . . . . . . . 2 Parts Lost 22 | . 1 . . . 1 . 1 . 11 8 Power 1 | . . . . . . . . . 1 . Propulsion 8 | . . . . . . . 1 . 5 2 Utility 11 | . . . . . 1 . . . 5 5 Weapon 2 | . 1 . . . . . . . . 1 Highest Loss Streak 11 | . 1 . . . 1 . 1 . 11 6 To Critical Strikes . | . . . . . . . . . . . Average Slot Usage (%) 26 | . 10 . . 4 9 31 68 65 27 16 Core 1 | . . . . . . 3 5 5 1 . Flight 6 | . . . . . . 12 18 18 5 2 Device 7 | . . . . 2 2 5 21 21 8 5 Protection 4 | . . . . . . 3 11 15 6 1 Slashing Weapon 1 | . . . . 2 7 3 3 . . . Piercing Weapon 2 | . . . . . . 3 5 5 5 1 Naked Turns 143 | . 2 43 48 50 . . . . . . Heaviest Build 32 | 2 2 . . 3 3 18 32 25 25 13 Greatest Support 34 | 3 3 3 3 3 3 18 34 28 26 26 Greatest Overweight (x) 2 | . . . . . . . . . 2 2 Average Overweight (x) . | . . . . . . . . . . . Largest Inventory Capacity 5 | 5 5 5 5 5 5 5 5 5 5 5 Average Capacity 5 | 5 5 5 5 5 5 5 5 5 5 5 Most Carried 5 | 4 4 5 5 5 5 5 5 5 5 5 Average Carried 4 | 4 4 4 5 5 5 4 4 4 2 4 Final Capacity 5 | 5 5 5 5 5 5 5 5 5 5 5 Final Carried 5 | 4 4 5 5 5 5 5 4 5 2 5 Class Distribution -------------------- 96% | Mutant 3% | Sprinter Dominant Class ---------------- Mutant | -10/Materials Mutant | -9/Materials Mutant | -8/Materials Mutant | -7/Factory Mutant | -7/DSF Mutant | -6/Factory Mutant | -5/Factory Mutant | -4/Factory Mutant | -4/DSF Mutant | -3/Research Resources | -11 -10 -9 -8 -7 -7 -6 -5 -4 -4 -3 ----------- Run | Scr Mat Mat Mat Fac DSF Fac Fac Fac DSF Res Matter Collected 271 | 200 . . . . 13 . . . 1 57 Remotely . | . . . . . . . . . . . Salvage Created 72 | . . . . . . 15 . . . 57 Parts 4 | . . . . . . 3 . . . 1 Haulers Intercepted . | . . . . . . . . . . . Recyclers Shooed . | . . . . . . . . . . . Parts Field Recycled . | . . . . . . . . . . . Retrieved Matter . | . . . . . . . . . . . Parts Self-Destructed . | . . . . . . . . . . . Prevented . | . . . . . . . . . . . Kills | -11 -10 -9 -8 -7 -7 -6 -5 -4 -4 -3 ------- Run | Scr Mat Mat Mat Fac DSF Fac Fac Fac DSF Res Combat Hostiles Destroyed . | . . . . . . . . . . . Classes Destroyed 2 | . . . . . . 1 . . . 1 Builder 1 | . . . . . . 1 . . . . Mechanic 1 | . . . . . . . . . . 1 Best Kill Streak 1 | . . . . . . 1 . . . 1 Combat Bots Only . | . . . . . . . . . . . Max Kills in Single Turn 1 | . . . . . . 1 . . . 1 Gunslinging . | . . . . . . . . . . . Exploded . | . . . . . . . . . . . Melee . | . . . . . . . . . . . Uniques/NPCs Destroyed . | . . . . . . . . . . . Combat | -11 -10 -9 -8 -7 -7 -6 -5 -4 -4 -3 -------- Run | Scr Mat Mat Mat Fac DSF Fac Fac Fac DSF Res Damage Taken 4392 | . 95 81 196 . 300 135 184 . 1649 1752 Core 3007 | . 50 81 196 . 270 59 . . 1048 1303 Absorbed by Shields 69 | . . . . . . . . . . 69 Redirected to Shielding 223 | . . . . . . . 38 . 141 44 Core Remaining (%) 73 | 100 80 79 64 . 61 93 100 . 8 . Volleys Fired . | . . . . . . . . . . . Largest . | . . . . . . . . . . . Hottest . | . . . . . . . . . . . Shots Fired . | . . . . . . . . . . . Gun . | . . . . . . . . . . . Cannon . | . . . . . . . . . . . Launcher . | . . . . . . . . . . . Special . | . . . . . . . . . . . Kinetic . | . . . . . . . . . . . Thermal . | . . . . . . . . . . . Explosive . | . . . . . . . . . . . Electromagnetic . | . . . . . . . . . . . Robot Hit Streak . | . . . . . . . . . . . Robot Miss Streak . | . . . . . . . . . . . Penetration Max . | . . . . . . . . . . . Secondary Targets . | . . . . . . . . . . . Shots Hit Robots 2 | . . . . . . 1 . . . 1 Core Hits 2 | . . . 1 . . . . . . 1 Critical Kills . | . . . . . . . . . . . Critical Parts Destroyed . | . . . . . . . . . . . Critical Strikes . | . . . . . . . . . . . Melee Attacks 15 | . . . . . . 8 2 4 . 1 Impact . | . . . . . . . . . . . Slashing 1 | . . . . . . . 1 . . . Piercing 14 | . . . . . . 8 1 4 . 1 Sneak Attacks 2 | . . . . . . 1 . . . 1 Combat Hostiles . | . . . . . . . . . . . Follow-up Attacks . | . . . . . . . . . . . Damage Inflicted 214 | . . 6 18 . . 93 . . . 97 Guns . | . . . . . . . . . . . Cannons . | . . . . . . . . . . . Explosions . | . . . . . . . . . . . Melee 186 | . . . . . . 93 . . . 93 Ramming 28 | . . 6 18 . . . . . . 4 Kinetic . | . . . . . . . . . . . Thermal . | . . . . . . . . . . . Explosive . | . . . . . . . . . . . Electromagnetic . | . . . . . . . . . . . Impact . | . . . . . . . . . . . Slashing . | . . . . . . . . . . . Piercing 186 | . . . . . . 93 . . . 93 Highest Corruption 7 | . . . 1 . . . . . . 7 Average Corruption 2 | . . . 1 . . . . . . 3 Corruption Purged . | . . . . . . . . . . . Corruption Blocked . | . . . . . . . . . . . Effects 2 | . . . . . . . . . . 2 Matter Fused 1 | . . . . . . . . . . 1 Heat Flow Errors 1 | . . . . . . . . . . 1 Overload Shots . | . . . . . . . . . . . Overflow Damage 53 | . . . . . . 53 . . . . Projectiles . | . . . . . . . . . . . Explosions . | . . . . . . . . . . . Melee 53 | . . . . . . 53 . . . . Knockbacks . | . . . . . . . . . . . Impact . | . . . . . . . . . . . Kinetic . | . . . . . . . . . . . Secondary . | . . . . . . . . . . . Self-Inflicted Damage 13 | . . 3 8 . . . . . . 2 Shots . | . . . . . . . . . . . Rammed 7 | . . 2 4 . . . . . . 1 Targets Rammed 7 | . . 2 4 . . . . . . 1 Kicked . | . . . . . . . . . . . Crushed . | . . . . . . . . . . . Highest Temperature 77 | . . . . . . 16 . . . 77 Average Temperature 41 | . . . . . . 16 . . . 54 Received Heat Transfer 517 | . 18 42 99 . . 81 18 . . 259 Siege Activations . | . . . . . . . . . . . Robots Corrupted . | . . . . . . . . . . . Combat Hostiles . | . . . . . . . . . . . Parts Fried . | . . . . . . . . . . . Impact Corruptions . | . . . . . . . . . . . Robots Melted . | . . . . . . . . . . . Combat Hostiles . | . . . . . . . . . . . Parts Melted . | . . . . . . . . . . . Heat Transferred . | . . . . . . . . . . . Parts Sabotaged . | . . . . . . . . . . . Parts Stolen . | . . . . . . . . . . . Parts Stripped . | . . . . . . . . . . . Power Chain Reactions . | . . . . . . . . . . . Missiles Intercepted . | . . . . . . . . . . . Alert | -11 -10 -9 -8 -7 -7 -6 -5 -4 -4 -3 ------- Run | Scr Mat Mat Mat Fac DSF Fac Fac Fac DSF Res Peak Influence 225 | . 15 36 44 33 26 111 142 77 53 225 Initial 69 | . . 1 14 19 26 8 53 69 53 . Average 60 | . 8 12 32 21 18 44 75 71 16 102 Maximum Alert Level 1 | . . . . . . . . . . 1 Low Security (%) 95 | 100 100 100 100 100 100 100 100 100 100 85 Level 1 4 | . . . . . . . . . . 14 Level 2 . | . . . . . . . . . . . Level 3 . | . . . . . . . . . . . Level 4 . | . . . . . . . . . . . Level 5 . | . . . . . . . . . . . High Security . | . . . . . . . . . . . Max Security . | . . . . . . . . . . . Squads Dispatched 10 | . 1 1 1 . . 2 1 . 1 3 Investigation 6 | . 1 1 1 . . 1 1 . . 1 Extermination 1 | . . . . . . . . . . 1 Reinforcement 3 | . . . . . . 1 . . 1 1 Assault . | . . . . . . . . . . . Garrison . | . . . . . . . . . . . Intercept . | . . . . . . . . . . . Searches Triggered . | . . . . . . . . . . . Construction Impeded . | . . . . . . . . . . . Haulers Reinforced . | . . . . . . . . . . . Active Scanning Responses . | . . . . . . . . . . . Cargo Convoy Interrupts . | . . . . . . . . . . . Stealth | -11 -10 -9 -8 -7 -7 -6 -5 -4 -4 -3 --------- Run | Scr Mat Mat Mat Fac DSF Fac Fac Fac DSF Res Distress Signals 4 | . . 1 2 . . . . . . 1 Communications Jammed . | . . . . . . . . . . . Distress Signals . | . . . . . . . . . . . Times Spotted 70 | . 6 7 7 1 1 8 7 . 4 29 Peak Tracking Total 13 | . 6 10 8 1 1 6 7 . 4 13 Tactical Retreats 6 | . . . . . . 1 . . . 5 Traps | -11 -10 -9 -8 -7 -7 -6 -5 -4 -4 -3 ------- Run | Scr Mat Mat Mat Fac DSF Fac Fac Fac DSF Res Traps Triggered 6 | . . . . . . . . . 2 4 Indirectly . | . . . . . . . . . . . Trap Hack Attempts . | . . . . . . . . . . . Triggered . | . . . . . . . . . . . Disarmed . | . . . . . . . . . . . Reprogrammed . | . . . . . . . . . . . Reused . | . . . . . . . . . . . Traps Extracted . | . . . . . . . . . . . Installed . | . . . . . . . . . . . Triggered . | . . . . . . . . . . . Machines | -11 -10 -9 -8 -7 -7 -6 -5 -4 -4 -3 ---------- Run | Scr Mat Mat Mat Fac DSF Fac Fac Fac DSF Res Machines Disabled . | . . . . . . . . . . . Max in Single Turn . | . . . . . . . . . . . Machines Sabotaged . | . . . . . . . . . . . Garrisons Compromised . | . . . . . . . . . . . Overloaded Fab Kills . | . . . . . . . . . . . Hacking | -11 -10 -9 -8 -7 -7 -6 -5 -4 -4 -3 --------- Run | Scr Mat Mat Mat Fac DSF Fac Fac Fac DSF Res Machines Accessed 15 | . 2 1 1 2 . 2 2 1 . 4 Terminals 14 | . 2 1 1 2 . 2 1 1 . 4 Fabricators 1 | . . . . . . . 1 . . . Repair Stations . | . . . . . . . . . . . Recycling Units . | . . . . . . . . . . . Scanalyzers . | . . . . . . . . . . . Garrison Access . | . . . . . . . . . . . Total Hacks 35 | . 8 4 3 2 . 5 4 1 . 8 Successful 14 | . 3 1 1 2 . 3 1 1 . 2 Failed 21 | . 5 3 2 . . 2 3 . . 6 Catastrophic 3 | . 1 . . . . 1 . . . 1 Database Lockouts . | . . . . . . . . . . . Manual 20 | . 8 4 3 . . 3 2 . . . Terminals 33 | . 8 4 3 2 . 5 2 1 . 8 Fabricators 2 | . . . . . . . 2 . . . Repair Stations . | . . . . . . . . . . . Recycling Units . | . . . . . . . . . . . Scanalyzers . | . . . . . . . . . . . Garrison Access . | . . . . . . . . . . . Terminal Hacks 10 | . 2 . 1 2 . 2 . 1 . 2 Open DSF 2 | . . . . 1 . . . 1 . . Level Access Points 1 | . 1 . . . . . . . . . Branch Access Points 1 | . . . . . . . . . . 1 Emergency Access Points 1 | . . . . . . . . . . 1 Terminal Index 3 | . 1 . 1 . . 1 . . . . Locate Traps 1 | . . . . . . 1 . . . . Zone Layout 1 | . . . . 1 . . . . . . Fabricator Hacks 1 | . . . . . . . 1 . . . Build 1 | . . . . . . . 1 . . . Repair Station Hacks . | . . . . . . . . . . . Recycling Unit Hacks . | . . . . . . . . . . . Scanalyzer . | . . . . . . . . . . . Garrison Access Hacks . | . . . . . . . . . . . Unauthorized Hacks 3 | . 1 1 . . . 1 . . . . Terminals 3 | . 1 1 . . . 1 . . . . Botnet 3 | . 1 1 . . . 1 . . . . Fabricators . | . . . . . . . . . . . Repair Stations . | . . . . . . . . . . . Recycling Units . | . . . . . . . . . . . Scanalyzers . | . . . . . . . . . . . Garrison Access . | . . . . . . . . . . . Data Cores Recovered . | . . . . . . . . . . . Used . | . . . . . . . . . . . Hacking Detections 12 | . 2 1 1 . . 2 2 . . 4 Full Trace Events 7 | . 2 1 1 . . 1 1 . . 1 Feedback Events 1 | . . . 1 . . . . . . . Corruption 1 | . . . 1 . . . . . . . Feedback Blocked 1 | . . . . . . . . . . 1 Robot Schematics Acquired . | . . . . . . . . . . . Robots Built . | . . . . . . . . . . . Authchips . | . . . . . . . . . . . Time 152 | . . . . . . . 152 . . . Total Robot Build Rating . | . . . . . . . . . . . Part Schematics Acquired . | . . . . . . . . . . . Parts Built . | . . . . . . . . . . . Authchips . | . . . . . . . . . . . Time . | . . . . . . . . . . . Total Part Build Rating . | . . . . . . . . . . . Parts Repaired . | . . . . . . . . . . . Time . | . . . . . . . . . . . Parts Recycled . | . . . . . . . . . . . Recycled Matter . | . . . . . . . . . . . Retrieved Matter . | . . . . . . . . . . . Retrieved Components . | . . . . . . . . . . . Parts Scanalyzed . | . . . . . . . . . . . Part Schematics Acquired . | . . . . . . . . . . . Parts Damaged . | . . . . . . . . . . . Bothacking | -11 -10 -9 -8 -7 -7 -6 -5 -4 -4 -3 ------------ Run | Scr Mat Mat Mat Fac DSF Fac Fac Fac DSF Res Used RIF Installer . | . . . . . . . . . . . Robots Hacked . | . . . . . . . . . . . Non-combat . | . . . . . . . . . . . Combat . | . . . . . . . . . . . Robot Hacks Applied . | . . . . . . . . . . . Relay Couplers Released . | . . . . . . . . . . . Fabnet Peak Effective % . | . . . . . . . . . . . Robots Rewired . | . . . . . . . . . . . Allies Hacked . | . . . . . . . . . . . Hacks Repelled . | . . . . . . . . . . . Allies | -11 -10 -9 -8 -7 -7 -6 -5 -4 -4 -3 -------- Run | Scr Mat Mat Mat Fac DSF Fac Fac Fac DSF Res Total Allies . | . . . . . . . . . . . Largest Group . | . . . . . . . . . . . Highest-Rated Group . | . . . . . . . . . . . Highest-Rated Ally . | . . . . . . . . . . . Total Orders . | . . . . . . . . . . . Ally Attacks . | . . . . . . . . . . . Total Damage . | . . . . . . . . . . . Kills . | . . . . . . . . . . . Allies Corrupted . | . . . . . . . . . . . Allies Melted . | . . . . . . . . . . . Intel | -11 -10 -9 -8 -7 -7 -6 -5 -4 -4 -3 ------- Run | Scr Mat Mat Mat Fac DSF Fac Fac Fac DSF Res Robot Analysis Total . | . . . . . . . . . . . Derelict Logs Recovered . | . . . . . . . . . . . Drone Launches . | . . . . . . . . . . . Drone Recoveries . | . . . . . . . . . . . Exploration | -11 -10 -9 -8 -7 -7 -6 -5 -4 -4 -3 ------------- Run | Scr Mat Mat Mat Fac DSF Fac Fac Fac DSF Res Turns Passed 838 | 1 38 43 48 75 29 142 100 73 32 257 Spaces Moved 1600 | 1 76 71 88 142 55 250 235 169 57 456 Core 763 | 1 76 71 88 142 55 89 . . 25 216 Treads . | . . . . . . . . . . . Legs . | . . . . . . . . . . . Wheels . | . . . . . . . . . . . Hover . | . . . . . . . . . . . Flight 837 | . . . . . . 161 235 169 32 240 Fastest Speed 32 | 50 50 50 50 50 50 34 32 32 32 37 Average Speed 42 | 50 50 50 50 50 50 39 33 33 47 44 Slowest Speed 150 | 50 50 50 50 50 50 50 35 35 150 50 Overloaded Moves . | . . . . . . . . . . . Propulsion Burnouts . | . . . . . . . . . . . Robots Hopped 13 | . . . . . . . 4 . . 9 Cave-ins Triggered . | . . . . . . . . . . . Exploration Rate (%) 24 | 2 22 11 14 4 79 10 9 4 92 23 Regions Visited 10 Branch Regions . Pre-discovered Areas . | . . . . . . . . . . . Known Exits Taken 3 | . 1 . . 1 . . . 1 . . Unknown Exits Taken 5 | 1 . 1 1 . . 1 1 . . . Scrap Searched . | . . . . . . . . . . . Spaces Dug 12 | . . . . . . 7 1 4 . . Terrain Destroyed 12 | . . . . . . 7 1 4 . . Melee 12 | . . . . . . 7 1 4 . . Projectile . | . . . . . . . . . . . AOE . | . . . . . . . . . . . Terrain Rammed . | . . . . . . . . . . . Walls Destroyed . | . . . . . . . . . . . Machines Disabled . | . . . . . . . . . . . Actions | -11 -10 -9 -8 -7 -7 -6 -5 -4 -4 -3 --------- Run | Scr Mat Mat Mat Fac DSF Fac Fac Fac DSF Res Total 1701 | 1 75 79 91 144 56 274 247 176 63 495 Wait 2 | . . . . . . . . . . 2 Move 1565 | . 75 70 87 142 54 249 226 168 56 438 Hop 13 | . . . . . . . 4 . . 9 Pick Up 19 | . . 4 . . 1 4 3 2 1 4 Fast Attach 19 | . . . . 2 . 4 4 1 . 8 Attach 15 | 1 . . . . . 3 5 . 1 5 Detach 6 | . . . . . . 1 1 . 1 3 Swap 4 | . . . . . . 3 1 . . . Drop 15 | . . 3 . . 1 2 2 1 4 2 Fire . | . . . . . . . . . . . Melee 14 | . . . . . . 8 1 4 . 1 Ram 7 | . . 2 4 . . . . . . 1 Kick . | . . . . . . . . . . . Crush . | . . . . . . . . . . . Escape Stasis 22 | . . . . . . . . . . 22 Rewire . | . . . . . . . . . . . Trap . | . . . . . . . . . . . Miscellaneous . | . . . . . . . . . . . Route ------- -11/Scrapyard -10/Materials (discovered 3 exits: *Mat x3) -9/Materials -8/Materials -7/Factory -7/DSF -6/Factory -5/Factory -4/Factory -4/DSF -3/Research (discovered 3 exits: Arm / Tes x2) History --------- Turn | Location | Event 1 | -11/Scrapyard | Released all parts (6) 2 | -11/Scrapyard | Discovered new exit (range 0) 2 | -11/Scrapyard | Entered Materials 21 | -10/Materials | Identified exit to Materials 40 | -10/Materials | Entered another Materials area 40 | -9/Materials | Evolved 2 slots: Utility x2 76 | -9/Materials | Discovered new exit (range 16) 83 | -9/Materials | Entered another Materials area 83 | -8/Materials | Evolved 2 slots: Utility x2 130 | -8/Materials | Discovered new exit (range 3) 131 | -8/Materials | Entered Factory 131 | -7/Factory | Evolved 2 slots: Utility x2 206 | -7/Factory | Identified exit to DSF 206 | -7/Factory | Entered DSF 229 | -7/DSF | Discovered new exit (range 14) 234 | -7/DSF | Additional patrols routed to DSF 235 | -7/DSF | Entered Factory 235 | -6/Factory | Evolved 2 slots: Propulsion x2 328 | -6/Factory | Build established: Mutant 370 | -6/Factory | Discovered new exit (range 15) 377 | -6/Factory | Entered another Factory area 377 | -5/Factory | Evolved 2 slots: Utility x2 472 | -5/Factory | Discovered new exit (range 14) 477 | -5/Factory | Entered another Factory area 477 | -4/Factory | Evolved 2 slots: Utility x2 550 | -4/Factory | Identified exit to DSF 550 | -4/Factory | Entered DSF 550 | -4/DSF | Met a pair of Sappers preparing to destroy DSF 566 | -4/DSF | Additional patrols routed to DSF 574 | -4/DSF | Core integrity fell below 50% 575 | -4/DSF | Discovered new exit (range 15) 582 | -4/DSF | Core integrity fell below 20% 582 | -4/DSF | Entered Research 582 | -3/Research | Evolved 2 slots: Utility x2 604 | -3/Research | Lost 11 parts (1p5n5u) 678 | -3/Research | Spotted B-86 Titan 685 | -3/Research | Core integrity fell below 50% 714 | -3/Research | Identified exit to Armory 714 | -3/Research | Identified exit to Testing 741 | -3/Research | Found Prototype Device 741 | -3/Research | Identified Exp. Thermal Shield 800 | -3/Research | Core integrity fell below 20% 839 | -3/Research | Destroyed by P-80 Master with Gamma Rifle Last Messages --------------- 00802_ Field strength at 82. 00803_ Field strength at 76. 00804_ Field strength at 64. 00805_ Field strength at 52. 00806_ Field strength at 46. 00807_ Field strength at 27. 00808_ Adv. Weight Redist. System destroyed. 00808_ Field strength at 9. 00809_ Field strength at 3. 00810_ System corrupted: Heat flow error (+123). 00810_ Stasis field depleted. 00812_ Hacking Suite destroyed. 00815_ >> Machine Analyzer network decryption results: 00815_ DSF Access x1 00815_ Terminal x2 00824_ ALERT: Cargo convoy en route, clear transfer corridor. 00825_ Acquired Impulse Thruster Array. 00832_ ALERT: Rogue bot located, Programmers report to Research Zone 2A. 00835_ >> Machine Analyzer network decryption results: 00835_ Repair Station x2 Map ----- +----------------------------------------------------+ | ?????????????????????????????????????????????????? | | ?????????????????????????????????????????????????? | | ?????????????????????????????????????????????????? | | ?????????????????????????????????????????????????? | | ?????????????????????????????????????????????????? | | ?????????????????????????????????????????????????? | | ??????????????????????????????????????????????? ?? | | ??????????????????????????????????????????????? ?? | | ????????????????????????????????#+#???????????? ?? | | ???T????????????????????????????# #???????????? ?? | | ??????????????????????????????### #???????????? ?? | | ??????????????????????????????#"" #???????????? ?? | | ??????????????????????????????#"T #########???? ?? | | ????????????????????????????????# + #???# #? | | ????????????????????????????????# ## #???# #? | | ????????????????????????????????# ## +??? #? | | ????????????????????????????????# ## #???# #? | | ??????????????##########????????# ## !#???# #? | | ??????????????# ########## ## #???# #? | | ??????????????# # g ##+######### ## | | ??????????????# """ # | | ??????????????# """ # | | ??????????????# R" ; ############# | | ??????????????#= """ # ########???????????# | | ??????????????# # #??????????????????# | | ??????????????# # @ #??????????????????# | | ??????????????# ! # #??????????????????# | | ??????????????########## #??????????????????## | | ???????????????????????# #???????????????????# | | ???????????????????????# #???????????????????# | | ???????????????????????# #???????????????????# | | ???????????????????????# #???????????????????# | | ???????????????????????# #""""???????????????# | | ???????????????????????# #""""???????????????# | | ???????????????????????# #""""???????????????# | | ???????????????????????# #""""??????????????? | | ???????????????????????# +?????????????????? | | ???????????????????????# p #?????????????????? | | ???????????????????????? p#?????????????????? | | ???????????????????????? #?????????????????? | | ???????????????????????? p???????????????????? | | ????????????????????????????????????????????????? | | ?????????????????????????????????????????????????? | | ?????????????????????????????????????????????????? | | ?????????????????????????????????????????????????? | | ?????????????????????????????????????????????????? | | ?????????????????????????????????????????????????? | | ?????????????????????????????????????????????????? | | ?????????????????????????????????????????????????? | | ?????????????????????????????????????????????????? | +----------------------------------------------------+ Best States ------------- Heat Dissipation 46 Energy Generation 15 Energy Capacity 250 Matter Stores 300 Matter Capacity 300 Sight Range 16 Robot Scan Range 15 Terrain Scan Density 10 Power Amplification 40 Additional Mass Support 9 Armor Coverage 450 Utility Shielding 66 Evasion (%) 74 Offensive Hacking 10 Item Schematics ----------------- None Robot Schematics ------------------ None Fabricated ------------ Nothing Alien Tech Used ----------------- None Achievements -------------- None Challenges ------------ None Game ------ Seed PowerOpticalDrive Manual? 0 Play Time 00:28:41 Cumulative 151.2 hours Start 2022.05.02 @ 01:38:05 End 2022.05.02 @ 02:03:07 Sessions 1 Manual Loads 0 Difficulty Rogue Special Mode None Game No. 234 Rogue 233 Adventurer 0 Explorer 1 Win Type - Total 7 Types 7/0/0/0/0/0/0/0/0 Lore% 60 Gallery% 62 Achievement% 51 Wizard Run 0 Options --------- ASCII 1 Keyboard 0 Movement Vi Keybinds 0 Fullscreen 1 Font 18/SmallcapsGlow Map View 76x50 Tactical HUD 1 Map Filters NONE Filters NONE Steam 1 RUN: 95d7ece1-9410-4783-8ba0-bef90bdd5f9c